[Event "DSAM Bad Wildungen 2024"]
[Site "Bad Wildungen"]
[Date "2024.08.02"]
[Round "3.16"]
[White "Pick, Max"]
[Black "Muendoerfer, Sebastian"]
[Result "1/2-1/2"]
[Annotator "ChessBase"]
[ECO "D03"]
[WhiteElo "1906"]
[BlackElo "1988"]
[PlyCount "126"]
[EventDate "2024.07.31"]
[EventCountry "GER"]
[SourceTitle "playchess.com"]
[Source "ChessBase"]
[SourceQuality "1"]
[TimeControl "40/5400+30:900+30"]

1. d4 Nf6 2. Nf3 e6 3. Bg5 d5 4. Nbd2 Be7 5. e3 c5 6. c3 Nbd7 7. Bd3 h6 8. Bf4 c4 9. Bc2 b5 10. e4 dxe4 11. Nxe4 Bb7 12. Ned2 Nd5 13. Bg3 Rc8 14. O-O O-O 15. Re1 N7f6 16. Ne5 Nb6 17. Ne4 b4 18. Nxf6+ Bxf6 19. cxb4 Nd5 20. a3 Bg5 21. Qe2 c3 22. Qd3 f5 23. b3 Bd2 24. Re2 Nf6 25. f3 Nh5 26. Nc4 Qg5 27. Nxd2 Nxg3 28. hxg3 cxd2 29. f4 Qg4 30. Qxd2 Qxg3 31. Bd3 Bd5 32. Qe3 Qxe3+ 33. Rxe3 Rc3 34. Kf2 Rxb3 35. Ba6 Rxe3 36. Kxe3 Bxg2 37. Rc1 Rf7 {[%emt 0:18:30]} 38. a4 {[%emt 0:18:33]} Rd7 {[%emt 0:00:30]} 39. Bc8 {[%emt 0:00:30]} Re7 {[%emt 0:00:30]} 40. b5 {[%emt 0:00:30]} Kf8 {[%emt 0:00:30]} 41. a5 {[%emt 0:15:30]} Ke8 {[%emt 0:15:30]} 42. d5 {[%emt 0:00:30]} Bxd5 {[%emt 0:00:30]} 43. Kd4 {[%emt 0:00:30]} Kd8 {[%emt 0:00:30]} 44. b6 {[%emt 0:00:30]} axb6 {[%emt 0:00:30]} 45. axb6 {[%emt 0:00:30]} g5 {[%emt 0:00:30]} 46. Ba6 {[%emt 0:00:30]} Bb7 {[%emt 0:00:30]} 47. Bxb7 {[%emt 0:00:30]} Rxb7 {[%emt 0:00:30]} 48. Kc5 {[%emt 0:00:30]} gxf4 {[%emt 0:00:30]} 49. Kc6 {[%emt 0:00:30]} Rb8 {[%emt 0:00:30]} 50. Rg1 {[%emt 0:00:30]} Ke7 {[%emt 0:00:30]} 51. Kc7 {[%emt 0:00:30]} Rh8 {[%emt 0:00:30]} 52. b7 {[%emt 0:00:30]} e5 {[%emt 0:00:30]} 53. Ra1 {[%emt 0:00:30]} Kf6 {[%emt 0:00:30]} 54. Ra8 {[%emt 0:00:30]} Rh7+ {[%emt 0:00:30]} 55. Kc6 {[%emt 0:00:30]} Rxb7 {[%emt 0:00:30]} 56. Kxb7 {[%emt 0:00:30]} f3 {[%emt 0:00:30]} 57. Ra1 {[%emt 0:00:30]} e4 {[%emt 0:00:30]} 58. Rf1 {[%emt 0:00:30]} Ke5 {[%emt 0:00:30]} 59. Kc6 {[%emt 0:00:30]} Kd4 {[%emt 0:00:30]} 60. Kd6 {[%emt 0:00:30]} Ke3 {[%emt 0:00:30]} 61. Ke5 {[%emt 0:00:30]} f2 {[%emt 0:00:30]} 62. Kxf5 {[%emt 0:00:30]} Kf3 {[%emt 0:00:30]} 63. Rxf2+ {[%emt 0:00:30]} Kxf2 {[%emt 0:00:30]} 1/2-1/2

[Event "DSAM Bad Wildungen 2024"]
[Site "Bad Wildungen"]
[Date "2024.08.02"]
[Round "3.17"]
[White "Marcziter, Alex"]
[Black "Helms, Sven"]
[Result "1-0"]
[Annotator "RC"]
[ECO "C55"]
[WhiteElo "2052"]
[BlackElo "1960"]
[PlyCount "71"]
[EventDate "2024.07.31"]
[EventCountry "GER"]
[SourceTitle "playchess.com"]
[Source "ChessBase"]
[SourceQuality "1"]
[TimeControl "40/5400+30:900+30"]

1. e4 {[%emt 0:00:58]} e5 {[%emt 0:00:11]} 2. Nf3 {[%emt 0:00:05]} Nc6 {[%emt 0:00:04]} 3. Bc4 {[%emt 0:00:12]} Nf6 {[%emt 0:00:15]} 4. d3 {[%emt 0:00:06]} Be7 {[%emt 0:00:09]} 5. O-O {[%emt 0:00:13]} O-O {[%emt 0:00:41]} 6. h3 {[%emt 0:00:07]} d6 {[%emt 0:00:23]} 7. c3 {[%emt 0:00:12]} Na5 {[%emt 0:00:54]} 8. Bb5 {[%emt 0:00:13]} a6 {[%emt 0:00:10]} 9. Ba4 {[%emt 0:00:05]} b5 {[%emt 0:00:05]} 10. Bc2 {[%emt 0:00:03]} c5 {[%emt 0:00:10]} 11. d4 {[%emt 0:00:08]} Qc7 {[%emt 0:02:32]} 12. Qe2 {[%emt 0:11:29]} Nc4 {[%emt 0:05:42]} 13. b3 {[%emt 0:02:18]} Nb6 {[%emt 0:00:31]} 14. Bb2 {[%emt 0:01:17]} c4 {[%emt 0:04:03]} 15. Nbd2 {[%emt 0:10:58]} Bd7 {[%emt 0:05:23]} 16. Ba3 {[%emt 0:10:40]} Rfe8 {[%emt 0:07:41]} 17. dxe5 {[%emt 0:01:31]} dxe5 {[%emt 0:03:45]} 18. Bxe7 {[%emt 0:00:06]} Rxe7 {[%emt 0:00:29]} 19. b4 {[%emt 0:02:22]} Bc6 {[%emt 0:04:04]} 20. Rfd1 {[%emt 0:02:03]} Rd7 {[%emt 0:02:44]} 21. Nf1 {[%emt 0:03:32]} Rad8 {[%emt 0:03:32]} 22. Ng3 {[%emt 0:00:09]} Rxd1+ {[%emt 0:02:33]} 23. Rxd1 {[%emt 0:00:08]} g6 {[%emt 0:02:57]} 24. Rxd8+ {[%emt 0:02:48]} Qxd8 {[%emt 0:03:30]} 25. Nxe5 {[%emt 0:00:16]} Qd6 {[%emt 0:03:02]} 26. Nxc6 {[%emt 0:04:13]} Qxc6 {[%emt 0:00:05]} 27. Qe3 {[%emt 0:00:13]} Nbd7 {[%emt 0:05:17]} 28. Ne2 {[%emt 0:01:12]} Ne5 {[%emt 0:05:27]} 29. Nd4 {[%emt 0:00:19]} Qb7 {[%emt 0:03:28]} 30. f3 {[%emt 0:01:23]} Kg7 {[%emt 0:03:08]} 31. Qg5 {[%emt 0:02:12]} Ned7 {[%emt 0:03:19]} 32. e5 {[%emt 0:04:25]} Ne8 {[%emt 0:00:55]} 33. Qe7 {[%emt 0:02:29]} Qc8 {[%emt 0:01:10]} 34. e6 {[%emt 0:00:07]} Ne5 {[%emt 0:01:27]} 35. exf7 {[%emt 0:00:06]} Nxf7 {[%emt 0:00:28]} 36. Ne6+ {[%emt 0:00:04]} 1-0

[Event "DSAM Bad Wildungen 2024"]
[Site "Bad Wildungen"]
[Date "2024.08.02"]
[Round "3.18"]
[White "Lu, Yunong Elias"]
[Black "Bleicher, Eiko"]
[Result "1-0"]
[Annotator "RC"]
[ECO "B44"]
[WhiteElo "1996"]
[BlackElo "1886"]
[PlyCount "56"]
[EventDate "2024.07.31"]
[EventCountry "GER"]
[SourceTitle "playchess.com"]
[Source "ChessBase"]
[SourceQuality "1"]
[TimeControl "40/5400+30:900+30"]

1. e4 {[%emt 0:00:03]} c5 {[%emt 0:00:26]} 2. Nf3 {[%emt 0:00:07]} e6 {[%emt 0:00:19]} 3. d4 {[%emt 0:00:27]} cxd4 {[%emt 0:00:06]} 4. Nxd4 {[%emt 0:00:05]} Nc6 {[%emt 0:00:17]} 5. g3 {[%emt 0:10:50]} Nf6 {[%emt 0:02:02]} 6. Bg2 {[%emt 0:02:23]} Qc7 {[%emt 0:02:06]} 7. O-O {[%emt 0:07:45]} Nxd4 {[%emt 0:04:18]} 8. Qxd4 {[%emt 0:00:04]} Bc5 {[%emt 0:00:17]} 9. Qd3 {[%emt 0:01:26]} O-O {[%emt 0:00:57]} 10. c4 {[%emt 0:01:58]} d6 {[%emt 0:09:37]} 11. Qe2 {[%emt 0:02:20]} Bd7 {[%emt 0:05:46]} 12. Rd1 {[%emt 0:01:52]} Bc6 {[%emt 0:01:35]} 13. Nc3 {[%emt 0:03:58]} h6 {[%emt 0:11:22]} 14. a3 {[%emt 0:00:26]} a5 {[%emt 0:00:30]} 15. b3 {[%emt 0:01:17]} Rac8 {[%emt 0:07:20]} 16. Bb2 {[%emt 0:02:24]} Qb6 {[%emt 0:05:49]} 17. Rd3 {[%emt 0:02:16]} Nd7 {[%emt 0:01:50]} 18. Nd1 {[%emt 0:04:28]} Ne5 {[%emt 0:02:56]} 19. Bxe5 {[%emt 0:00:15]} dxe5 {[%emt 0:00:06]} 20. Ne3 {[%emt 0:02:33]} Rcd8 {[%emt 0:00:40]} 21. Nd1 {[%emt 0:06:21]} Rxd3 {[%emt 0:02:25]} 22. Qxd3 {[%emt 0:00:03]} Rd8 {[%emt 0:00:14]} 23. Qc2 {[%emt 0:00:34]} Rd7 {[%emt 0:01:26]} 24. Kf1 {[%emt 0:04:54]} Qd8 {[%emt 0:01:43]} 25. Ke2 {[%emt 0:00:18]} Qe7 {[%emt 0:06:14]} 26. a4 {[%emt 0:01:14]} Qg5 {[%emt 0:02:20]} 27. h4 {[%emt 0:00:52]} Qd8 {[%emt 0:01:30]} 28. Nc3 {[%emt 0:08:20]} Bxf2 {[%emt 0:01:31]} 1-0

[Event "DSAM Bad Wildungen 2024"]
[Site "Bad Wildungen"]
[Date "2024.08.02"]
[Round "3.19"]
[White "Wiethuechter, Samuel"]
[Black "Schmidt-Schaeffer, Sebastian"]
[Result "1/2-1/2"]
[Annotator "RC"]
[ECO "C42"]
[WhiteElo "1888"]
[BlackElo "2344"]
[PlyCount "56"]
[EventDate "2024.07.31"]
[EventCountry "GER"]
[SourceTitle "playchess.com"]
[Source "ChessBase"]
[SourceQuality "1"]
[TimeControl "40/5400+30:900+30"]

1. e4 {[%emt 0:00:03]} e5 {[%emt 0:00:05]} 2. Nf3 {[%emt 0:00:04]} Nf6 {[%emt 0:00:02]} 3. Nxe5 {[%emt 0:00:11]} d6 {[%emt 0:00:04]} 4. Nf3 {[%emt 0:00:05]} Nxe4 {[%emt 0:00:05]} 5. d4 {[%emt 0:00:09]} d5 {[%emt 0:00:05]} 6. Bd3 {[%emt 0:00:37]} Bd6 {[%emt 0:00:08]} 7. O-O {[%emt 0:00:49]} O-O {[%emt 0:00:06]} 8. c4 {[%emt 0:00:10]} c6 {[%emt 0:00:06]} 9. Nc3 {[%emt 0:00:46]} Nxc3 {[%emt 0:01:54]} 10. bxc3 {[%emt 0:00:05]} dxc4 {[%emt 0:00:03]} 11. Bxc4 {[%emt 0:01:47]} Bf5 {[%emt 0:00:03]} 12. Bg5 {[%emt 0:11:12]} Qa5 {[%emt 0:00:08]} 13. Bd3 {[%emt 0:04:01]} Bg4 {[%emt 0:05:24]} 14. Bd2 {[%emt 0:02:25]} Qh5 {[%emt 0:00:38]} 15. h3 {[%emt 0:00:52]} Bxf3 {[%emt 0:01:42]} 16. Qxf3 {[%emt 0:00:10]} Qxf3 {[%emt 0:00:06]} 17. gxf3 {[%emt 0:00:04]} Nd7 {[%emt 0:00:51]} 18. Rab1 {[%emt 0:07:03]} Rab8 {[%emt 0:09:52]} 19. Bg5 {[%emt 0:02:31]} Rfe8 {[%emt 0:03:03]} 20. Rfe1 {[%emt 0:02:48]} b6 {[%emt 0:07:05]} 21. Be4 {[%emt 0:17:17]} c5 {[%emt 0:06:56]} 22. Bc6 {[%emt 0:04:20]} Rxe1+ {[%emt 0:00:40]} 23. Rxe1 {[%emt 0:00:07]} Nf8 {[%emt 0:00:23]} 24. Be7 {[%emt 0:03:59]} Bxe7 {[%emt 0:11:40]} 25. Rxe7 {[%emt 0:00:07]} cxd4 {[%emt 0:00:36]} 26. cxd4 {[%emt 0:00:31]} Ne6 {[%emt 0:07:47]} 27. Rxa7 {[%emt 0:05:50]} Nxd4 {[%emt 0:00:57]} 28. Bd5 {[%emt 0:02:05]} Rf8 {[%emt 0:14:24]} 1/2-1/2

[Event "DSAM Bad Wildungen 2024"]
[Site "Bad Wildungen"]
[Date "2024.08.02"]
[Round "3.20"]
[White "Spickermann, Sven"]
[Black "Schmalz, Dirk"]
[Result "1/2-1/2"]
[Annotator "ChessBase"]
[ECO "A05"]
[WhiteElo "1920"]
[BlackElo "1945"]
[PlyCount "100"]
[EventDate "2024.07.31"]
[EventCountry "GER"]
[SourceTitle "playchess.com"]
[Source "ChessBase"]
[SourceQuality "1"]
[TimeControl "40/5400+30:900+30"]

1. Nf3 {[%emt 0:00:02]} Nf6 {[%emt 0:00:25]} 2. g3 {[%emt 0:00:05]} g6 {[%emt 0:02:48]} 3. b3 {[%emt 0:00:05]} Bg7 {[%emt 0:00:04]} 4. Bb2 {[%emt 0:00:05]} O-O {[%emt 0:06:35]} 5. Bg2 {[%emt 0:00:04]} d5 {[%emt 0:00:32]} 6. c4 {[%emt 0:00:07]} c5 {[%emt 0:05:14]} 7. cxd5 {[%emt 0:00:04]} Qxd5 {[%emt 0:05:21]} 8. O-O {[%emt 0:07:30]} Qh5 {[%emt 0:10:15]} 9. d3 {[%emt 0:06:40]} Bh3 {[%emt 0:04:19]} 10. Nbd2 {[%emt 0:00:33]} Bxg2 {[%emt 0:00:55]} 11. Kxg2 {[%emt 0:00:03]} Nc6 {[%emt 0:02:20]} 12. Rc1 {[%emt 0:02:10]} Rfd8 {[%emt 0:04:08]} 13. Qc2 {[%emt 0:06:48]} b6 {[%emt 0:09:08]} 14. a3 {[%emt 0:00:46]} Qf5 {[%emt 0:12:01]} 15. b4 {[%emt 0:09:26]} Nd4 {[%emt 0:01:09]} 16. Nxd4 {[%emt 0:01:10]} cxd4 {[%emt 0:00:11]} 17. Nf3 {[%emt 0:00:26]} e5 {[%emt 0:04:13]} 18. Qb3 {[%emt 0:01:51]} Bh6 {[%emt 0:07:00]} 19. Rc2 {[%emt 0:05:08]} Rac8 {[%emt 0:01:17]} 20. Bc1 {[%emt 0:00:21]} Rxc2 {[%emt 0:01:25]} 21. Qxc2 {[%emt 0:00:04]} Rc8 {[%emt 0:01:29]} 22. Qb2 {[%emt 0:00:39]} Bg7 {[%emt 0:01:16]} 23. Rd1 {[%emt 0:10:20]} Nd5 {[%emt 0:02:03]} 24. Bd2 {[%emt 0:05:56]} Nc3 {[%emt 0:02:35]} 25. Bxc3 {[%emt 0:00:54]} dxc3 {[%emt 0:00:19]} 26. Qc2 {[%emt 0:00:14]} Qd7 {[%emt 0:05:49]} 27. Rc1 {[%emt 0:04:03]} Qd5 {[%emt 0:02:51]} 28. e4 {[%emt 0:05:38]} Qc6 {[%emt 0:04:12]} 29. Qb3 {[%emt 0:02:27]} a5 {[%emt 0:01:20]} 30. Ng5 {[%emt 0:02:39]} Rc7 {[%emt 0:00:53]} 31. Rc2 {[%emt 0:13:51]} axb4 {[%emt 0:00:40]} 32. axb4 {[%emt 0:02:13]} b5 {[%emt 0:00:33]} 33. Nf3 {[%emt 0:00:22]} h6 {[%emt 0:02:26]} 34. Ng1 {[%emt 0:00:34]} Bf8 {[%emt 0:00:47]} 35. Ne2 {[%emt 0:00:55]} Qd6 {[%emt 0:00:32]} 36. Rxc3 {[%emt 0:01:43]} Rxc3 {[%emt 0:00:47]} 37. Qxc3 {[%emt 0:00:05]} f6 {[%emt 0:00:29]} 38. d4 {[%emt 0:10:24]} Qxb4 {[%emt 0:00:22]} 39. Qxb4 {[%emt 0:00:03]} Bxb4 {[%emt 0:00:02]} 40. dxe5 {[%emt 0:00:17]} fxe5 {[%emt 0:00:22]} 41. Nc1 {[%emt 0:15:07]} Kf7 {[%emt 0:01:33]} 42. Kf3 {[%emt 0:00:00]} Ke6 {[%emt 0:01:11]} 43. Ke2 {[%emt 0:00:00]} Bc5 {[%emt 0:08:03]} 44. Nd3 {[%emt 0:00:00]} Bd4 {[%emt 0:02:00]} 45. Kd2 {[%emt 0:00:00]} g5 {[%emt 0:03:59]} 46. h3 {[%emt 0:00:00]} Kd6 {[%emt 0:00:42]} 47. Kc2 {[%emt 0:00:00]} Kc6 {[%emt 0:01:02]} 48. Kb3 {[%emt 0:00:00]} Kb6 {[%emt 0:00:33]} 49. f3 {[%emt 0:01:57]} Kc6 {[%emt 0:00:17]} 50. g4 {[%emt 0:01:07]} Kb6 {[%emt 0:02:03]} 1/2-1/2

[Event "DSAM Bad Wildungen 2024"]
[Site "Bad Wildungen"]
[Date "2024.08.02"]
[Round "3.21"]
[White "Langer, Paul Georg"]
[Black "Andresen, Marc"]
[Result "1/2-1/2"]
[Annotator "ChessBase"]
[ECO "B13"]
[WhiteElo "1933"]
[BlackElo "1844"]
[PlyCount "83"]
[EventDate "2024.07.31"]
[EventCountry "GER"]
[SourceTitle "playchess.com"]
[Source "ChessBase"]
[SourceQuality "1"]
[TimeControl "40/5400+30:900+30"]

1. d4 {[%emt 0:00:03]} d5 {[%emt 0:00:06]} 2. Nc3 {[%emt 0:00:10]} Nf6 {[%emt 0:00:05]} 3. Bf4 {[%emt 0:00:06]} c5 {[%emt 0:00:06]} 4. e3 {[%emt 0:00:23]} cxd4 {[%emt 0:00:07]} 5. exd4 {[%emt 0:00:17]} Bg4 {[%emt 0:00:19]} 6. Be2 {[%emt 0:02:21]} Bxe2 {[%emt 0:00:23]} 7. Qxe2 {[%emt 0:00:49]} a6 {[%emt 0:00:07]} 8. Nf3 {[%emt 0:02:25]} Nc6 {[%emt 0:00:26]} 9. O-O {[%emt 0:18:01]} e6 {[%emt 0:04:05]} 10. Rfd1 {[%emt 0:07:28]} Bd6 {[%emt 0:04:36]} 11. Bxd6 {[%emt 0:07:09]} Qxd6 {[%emt 0:00:12]} 12. Ne5 {[%emt 0:02:43]} O-O {[%emt 0:01:36]} 13. a3 {[%emt 0:14:07]} Rfc8 {[%emt 0:10:32]} 14. Rd3 {[%emt 0:05:12]} Nd7 {[%emt 0:13:02]} 15. Nxd7 {[%emt 0:07:37]} Qxd7 {[%emt 0:00:26]} 16. Na4 {[%emt 0:08:52]} Qc7 {[%emt 0:04:43]} 17. Qg4 {[%emt 0:05:14]} Ne7 {[%emt 0:14:46]} 18. Rc3 {[%emt 0:08:03]} Qa5 {[%emt 0:21:20]} 19. Nc5 {[%emt 0:05:10]} Nf5 {[%emt 0:11:14]} 20. Rd1 {[%emt 0:03:23]} b6 {[%emt 0:01:32]} 21. Nb3 {[%emt 0:00:35]} Qb5 {[%emt 0:00:08]} 22. Rdd3 {[%emt 0:00:31]} Rc4 {[%emt 0:02:44]} 23. Qf4 {[%emt 0:00:45]} Qd7 {[%emt 0:08:03]} 24. Nd2 {[%emt 0:00:25]} Rxc3 {[%emt 0:00:10]} 25. Rxc3 {[%emt 0:00:02]} Rc8 {[%emt 0:00:59]} 26. Rxc8+ {[%emt 0:00:49]} Qxc8 {[%emt 0:00:01]} 27. c3 {[%emt 0:00:10]} Qd8 {[%emt 0:01:03]} 28. Nf3 {[%emt 0:00:31]} Qd6 {[%emt 0:00:16]} 29. Qe5 {[%emt 0:00:51]} f6 {[%emt 0:00:38]} 30. Qe2 {[%emt 0:00:27]} b5 {[%emt 0:01:04]} 31. g4 {[%emt 0:00:39]} Ne7 {[%emt 0:00:17]} 32. h3 {[%emt 0:00:39]} Ng6 {[%emt 0:00:34]} 33. Qe3 {[%emt 0:00:24]} Kf7 {[%emt 0:00:40]} 34. Ne1 {[%emt 0:00:32]} Qf4 {[%emt 0:00:30]} 35. Nd3 {[%emt 0:00:23]} Qd6 {[%emt 0:00:38]} 36. Nc5 {[%emt 0:00:23]} e5 {[%emt 0:00:28]} 37. dxe5 {[%emt 0:00:26]} Nxe5 {[%emt 0:00:01]} 38. Nd3 {[%emt 0:00:15]} Nc4 {[%emt 0:00:07]} 39. Qe2 {[%emt 0:00:05]} Qe6 {[%emt 0:01:15]} 40. Qxe6+ {[%emt 0:01:18]} Kxe6 {[%emt 0:00:01]} 41. f4 {[%emt 0:15:45]} g6 {[%emt 0:15:45]} 42. a4 {[%emt 0:01:02]} 1/2-1/2

[Event "DSAM Bad Wildungen 2024"]
[Site "Bad Wildungen"]
[Date "2024.08.02"]
[Round "3.22"]
[White "Reinecke, Katharina"]
[Black "Koelpin, Arvid"]
[Result "1-0"]
[Annotator "RC"]
[ECO "B51"]
[WhiteElo "1949"]
[BlackElo "1865"]
[PlyCount "65"]
[EventDate "2024.07.31"]
[EventCountry "GER"]
[SourceTitle "playchess.com"]
[Source "ChessBase"]
[SourceQuality "1"]
[TimeControl "40/5400+30:900+30"]

1. e4 {[%emt 0:00:04]} c5 {[%emt 0:00:06]} 2. Nf3 {[%emt 0:00:04]} d6 {[%emt 0:00:06]} 3. Bb5+ {[%emt 0:00:07]} Nd7 {[%emt 0:00:43]} 4. O-O {[%emt 0:00:27]} a6 {[%emt 0:00:07]} 5. Bd3 {[%emt 0:00:51]} b5 {[%emt 0:01:05]} 6. c3 {[%emt 0:00:47]} Bb7 {[%emt 0:03:18]} 7. Bc2 {[%emt 0:01:33]} Ngf6 {[%emt 0:02:26]} 8. Qe2 {[%emt 0:01:53]} e5 {[%emt 0:01:18]} 9. d4 {[%emt 0:02:03]} Be7 {[%emt 0:00:42]} 10. Bg5 {[%emt 0:10:46]} O-O {[%emt 0:00:47]} 11. Nbd2 {[%emt 0:02:04]} Rc8 {[%emt 0:01:04]} 12. Rac1 {[%emt 0:07:41]} Re8 {[%emt 0:02:24]} 13. Bxf6 {[%emt 1:08:40]} Bxf6 {[%emt 0:02:25]} 14. d5 {[%emt 0:00:00]} c4 {[%emt 0:00:20]} 15. a4 {[%emt 0:00:00]} Nc5 {[%emt 0:05:40]} 16. axb5 {[%emt 0:00:00]} axb5 {[%emt 0:01:27]} 17. b4 {[%emt 0:00:00]} cxb3 {[%emt 0:01:38]} 18. Nxb3 {[%emt 0:00:00]} Ba6 {[%emt 0:01:50]} 19. Nxc5 {[%emt 0:00:00]} Rxc5 {[%emt 0:01:11]} 20. Bd3 {[%emt 0:00:00]} Qd7 {[%emt 0:04:52]} 21. Ra1 {[%emt 0:00:00]} Qb7 {[%emt 0:01:08]} 22. Rfb1 {[%emt 0:00:00]} Rec8 {[%emt 0:02:17]} 23. c4 {[%emt 0:00:00]} b4 {[%emt 0:00:24]} 24. Nd2 {[%emt 0:00:00]} Bg5 {[%emt 0:01:57]} 25. Nb3 {[%emt 0:00:00]} R5c7 {[%emt 0:03:05]} 26. Na5 {[%emt 0:00:00]} Qb6 {[%emt 0:01:06]} 27. Nc6 {[%emt 0:00:00]} Rxc6 {[%emt 0:11:26]} 28. dxc6 {[%emt 0:00:00]} Qxc6 {[%emt 0:00:07]} 29. Rxb4 {[%emt 0:00:00]} f5 {[%emt 0:01:43]} 30. Rab1 {[%emt 0:00:00]} fxe4 {[%emt 0:03:54]} 31. Qxe4 {[%emt 0:00:00]} Qxe4 {[%emt 0:00:31]} 32. Bxe4 {[%emt 0:00:00]} Bxc4 {[%emt 0:00:17]} 33. Rxc4 {[%emt 0:00:00]} 1-0

[Event "DSAM Bad Wildungen 2024"]
[Site "Bad Wildungen"]
[Date "2024.08.02"]
[Round "3.23"]
[White "Best, Florian"]
[Black "Roenker, Sebastian"]
[Result "0-1"]
[Annotator "NA RC"]
[ECO "A49"]
[WhiteElo "1836"]
[BlackElo "1851"]
[PlyCount "78"]
[EventDate "2024.07.31"]
[EventCountry "GER"]
[SourceTitle "playchess.com"]
[Source "ChessBase"]
[SourceQuality "1"]
[TimeControl "40/5400+30:900+30"]

1. d4 {[%emt 0:00:07]} Nf6 {[%emt 0:00:03]} 2. Nf3 {[%emt 0:00:06]} g6 {[%emt 0:00:14]} 3. g3 {[%emt 0:00:09]} Bg7 {[%emt 0:00:13]} 4. Bg2 {[%emt 0:00:09]} O-O {[%emt 0:00:06]} 5. O-O {[%emt 0:00:04]} d6 {[%emt 0:02:11]} 6. Nbd2 {[%emt 0:00:36]} Nbd7 {[%emt 0:05:50]} 7. Re1 {[%emt 0:01:04]} c5 {[%emt 0:04:16]} 8. c3 {[%emt 0:00:16]} e5 {[%emt 0:10:02]} 9. dxe5 {[%emt 0:01:11]} dxe5 {[%emt 0:02:57]} 10. e4 {[%emt 0:01:19]} b5 {[%emt 0:00:50]} 11. c4 {[%emt 0:07:22]} a6 {[%emt 0:02:31]} 12. b3 {[%emt 0:03:24]} Re8 {[%emt 0:07:13]} 13. Bb2 {[%emt 0:00:13]} Qc7 {[%emt 0:01:04]} 14. Qc2 {[%emt 0:00:46]} Nb6 {[%emt 0:13:30]} 15. cxb5 {[%emt 0:04:02]} axb5 {[%emt 0:03:55]} 16. Rec1 {[%emt 0:13:57]} Nfd7 {[%emt 0:03:20]} 17. Ne1 {[%emt 0:00:33]} Bb7 {[%emt 0:10:56]} 18. Bf1 {[%emt 0:10:58]} Qc6 {[%emt 0:03:36]} 19. Qd3 {[%emt 0:08:16]} f5 {[%emt 0:09:25]} 20. Qxb5 {[%emt 0:01:00]} Qf6 {[%emt 0:04:17]} 21. Qe2 {[%emt 0:03:31]} Rf8 {[%emt 0:04:28]} 22. Bg2 {[%emt 0:06:11]} Bh6 {[%emt 0:02:31]} 23. f4 {[%emt 0:00:37]} Qd6 {[%emt 0:03:08]} 24. Nc4 {[%emt 0:01:33]} Ba6 {[%emt 0:01:20]} 25. Nxd6 {[%emt 0:01:25]} Bxe2 {[%emt 0:00:03]} 26. exf5 {[%emt 0:00:24]} Rad8 {[%emt 0:01:32]} 27. Rc2 {[%emt 0:02:15]} Ba6 {[%emt 0:00:02]} 28. fxe5 {[%emt 0:01:10]} Be3+ {[%emt 0:00:32]} 29. Kh1 {[%emt 0:00:08]} Nf6 {[%emt 0:01:20]} 30. Nc4 {[%emt 0:01:58]} Nfd5 {[%emt 0:00:50]} 31. Nxb6 {[%emt 0:04:05]} Nxb6 {[%emt 0:00:02]} 32. f6 {[%emt 0:01:19]} Nd5 {[%emt 0:00:57]} 33. Rd1 {[%emt 0:04:06]} Nb4 {[%emt 0:00:37]} 34. Rxd8 {[%emt 0:00:17]} Rxd8 {[%emt 0:00:08]} 35. Bf3 {[%emt 0:01:25]} Nxc2 {[%emt 0:00:23]} 36. Nxc2 {[%emt 0:00:07]} Rd1+ {[%emt 0:01:26]} 37. Kg2 {[%emt 0:00:25]} Rd2+ {[%emt 0:01:54]} 38. Kh3 {[%emt 0:00:05]} Bf1+ {[%emt 0:00:31]} 39. Kh4 {[%emt 0:00:21]} Rxh2+ {[%emt 0:00:28]} 0-1

[Event "DSAM Bad Wildungen 2024"]
[Site "Bad Wildungen"]
[Date "2024.08.02"]
[Round "3.24"]
[White "Boldt, Timo"]
[Black "Will, Jonas"]
[Result "1-0"]
[Annotator "NA RC"]
[ECO "A25"]
[WhiteElo "1801"]
[BlackElo "1868"]
[PlyCount "79"]
[EventDate "2024.07.31"]
[EventCountry "GER"]
[SourceTitle "playchess.com"]
[Source "ChessBase"]
[SourceQuality "1"]
[TimeControl "40/5400+30:900+30"]

1. c4 {[%emt 0:01:17]} e5 {[%emt 0:00:11]} 2. g3 {[%emt 0:00:23]} Nc6 {[%emt 0:00:26]} 3. Bg2 {[%emt 0:00:42]} Nf6 {[%emt 0:01:12]} 4. Nc3 {[%emt 0:02:03]} Bc5 {[%emt 0:00:53]} 5. e3 {[%emt 0:02:31]} d5 {[%emt 0:09:37]} 6. cxd5 {[%emt 0:08:50]} Nb4 {[%emt 0:00:27]} 7. d4 {[%emt 0:02:11]} exd4 {[%emt 0:00:19]} 8. exd4 {[%emt 0:00:02]} Be7 {[%emt 0:00:29]} 9. Nge2 {[%emt 0:13:51]} Nbxd5 {[%emt 0:01:37]} 10. O-O {[%emt 0:03:00]} c6 {[%emt 0:03:38]} 11. Nf4 {[%emt 0:02:13]} Nb6 {[%emt 0:01:13]} 12. d5 {[%emt 0:00:59]} Nbxd5 {[%emt 0:02:21]} 13. Nfxd5 {[%emt 0:03:00]} Nxd5 {[%emt 0:00:26]} 14. Nxd5 {[%emt 0:00:34]} cxd5 {[%emt 0:00:08]} 15. Bxd5 {[%emt 0:03:01]} O-O {[%emt 0:01:23]} 16. Qf3 {[%emt 0:01:23]} Qb6 {[%emt 0:04:22]} 17. Be3 {[%emt 0:11:29]} Bc5 {[%emt 0:08:51]} 18. Bxc5 {[%emt 0:05:32]} Qxc5 {[%emt 0:00:02]} 19. Rfe1 {[%emt 0:04:26]} Bg4 {[%emt 0:09:00]} 20. Qe4 {[%emt 0:12:59]} Rad8 {[%emt 0:02:19]} 21. Qxg4 {[%emt 0:11:42]} Rxd5 {[%emt 0:01:17]} 22. Rac1 {[%emt 0:00:32]} Qb6 {[%emt 0:02:22]} 23. Re7 {[%emt 0:02:29]} Rd2 {[%emt 0:00:51]} 24. Qf3 {[%emt 0:01:20]} Qxb2 {[%emt 0:06:08]} 25. Rc8 {[%emt 0:05:28]} Qxa2 {[%emt 0:04:58]} 26. Ree8 {[%emt 0:00:21]} Qb1+ {[%emt 0:10:38]} 27. Kg2 {[%emt 0:00:07]} Qb4 {[%emt 0:00:07]} 28. Rxf8+ {[%emt 0:00:06]} Qxf8 {[%emt 0:00:03]} 29. Rxf8+ {[%emt 0:00:06]} Kxf8 {[%emt 0:00:05]} 30. Qxb7 {[%emt 0:00:06]} Rd8 {[%emt 0:01:07]} 31. Qxa7 {[%emt 0:00:08]} g6 {[%emt 0:00:06]} 32. Qc7 {[%emt 0:00:25]} Re8 {[%emt 0:00:07]} 33. Kf3 {[%emt 0:00:22]} Kg8 {[%emt 0:00:05]} 34. Kg4 {[%emt 0:00:29]} Kg7 {[%emt 0:00:14]} 35. Qc3+ {[%emt 0:00:36]} Kg8 {[%emt 0:00:09]} 36. Kg5 {[%emt 0:00:20]} f6+ {[%emt 0:01:26]} 37. Qxf6 {[%emt 0:01:28]} Rf8 {[%emt 0:00:54]} 38. Qe6+ {[%emt 0:00:18]} Kg7 {[%emt 0:00:16]} 39. Qe5+ {[%emt 0:00:26]} Kg8 {[%emt 0:00:02]} 40. Kh6 {[%emt 0:00:26]} 1-0